[Event "*** Titled Tuesday 3|2 Blitz"]
[Site "Chess.com"]
[Date "2015.01.27"]
[Round "4"]
[White "oggy1984"]
[Black "Danirod"]
[Result "0-1"]
[WhiteElo "2185"]
[BlackElo "2323"]
[TimeControl "180+2"]
[EndTime "11:58:12 PST"]
[Termination "Danirod won by checkmate"]

1. e4 {[%clk 0:03:00]} 1... c5 {[%clk 0:02:58.6]} 2. Nf3 {[%clk 0:03:00.6]} 2...
g6 {[%clk 0:02:59.7]} 3. d4 {[%clk 0:03:01.4]} 3... cxd4 {[%clk 0:03:01.1]} 4.
Nxd4 {[%clk 0:03:03.3]} 4... Bg7 {[%clk 0:03:02.3]} 5. c4 {[%clk 0:03:01]} 5...
Nc6 {[%clk 0:03:03.2]} 6. Be3 {[%clk 0:03:01.5]} 6... Qb6 {[%clk 0:03:01.6]} 7.
Nb3 {[%clk 0:02:45.4]} 7... Qc7 {[%clk 0:03:01.3]} 8. Nc3 {[%clk 0:02:41.1]}
8... Nf6 {[%clk 0:03:01]} 9. f3 {[%clk 0:02:37.7]} 9... d6 {[%clk 0:03:02.3]}
10. Rc1 {[%clk 0:02:36.6]} 10... O-O {[%clk 0:03:02.5]} 11. Nd5 {[%clk
0:02:36.7]} 11... Qd8 {[%clk 0:03:02.2]} 12. Be2 {[%clk 0:02:29]} 12... Be6
{[%clk 0:03:00.2]} 13. O-O {[%clk 0:02:27.3]} 13... Rc8 {[%clk 0:03:01.4]} 14.
Qd2 {[%clk 0:02:21.1]} 14... b6 {[%clk 0:03:01.5]} 15. Nd4 {[%clk 0:02:12.4]}
15... Nxd4 {[%clk 0:02:56.1]} 16. Bxd4 {[%clk 0:02:12.3]} 16... Bxd5 {[%clk
0:02:54.3]} 17. cxd5 {[%clk 0:02:13]} 17... Nd7 {[%clk 0:02:53.3]} 18. b4 {[%clk
0:02:00.8]} 18... Bxd4+ {[%clk 0:02:47.4]} 19. Qxd4 {[%clk 0:02:01.6]} 19... a5
{[%clk 0:02:36.5]} 20. a3 {[%clk 0:01:59.9]} 20... axb4 {[%clk 0:02:37.5]} 21.
axb4 {[%clk 0:02:01.8]} 21... Rxc1 {[%clk 0:02:37.2]} 22. Rxc1 {[%clk 0:02:02]}
22... Qb8 {[%clk 0:02:38.7]} 23. Rc6 {[%clk 0:01:40.5]} 23... Ne5 {[%clk
0:02:26.4]} 24. Rc3 {[%clk 0:01:28.3]} 24... Qa7 {[%clk 0:02:14.8]} 25. f4
{[%clk 0:01:27.7]} 25... Qa1+ {[%clk 0:02:04.3]} 26. Kf2 {[%clk 0:01:26.5]}
26... Nd7 {[%clk 0:02:05.3]} 27. Qc4 {[%clk 0:01:05.4]} 27... Nf6 {[%clk
0:01:57.9]} 28. Bf3 {[%clk 0:01:01.6]} 28... Ra8 {[%clk 0:01:55.8]} 29. e5
{[%clk 0:00:58.5]} 29... Ra2+ {[%clk 0:01:49.3]} 30. Kg3 {[%clk 0:00:51.9]}
30... Qe1+ {[%clk 0:01:47.9]} 31. Kh3 {[%clk 0:00:52.4]} 31... dxe5 {[%clk
0:01:49.2]} 32. fxe5 {[%clk 0:00:52.9]} 32... Qxe5 {[%clk 0:01:45.4]} 33. Qxa2
{[%clk 0:00:34]} 33... Qxc3 {[%clk 0:01:44.1]} 34. b5 {[%clk 0:00:13.3]} 34...
Qc5 {[%clk 0:01:43.9]} 35. Qa6 {[%clk 0:00:12.1]} 35... Kg7 {[%clk 0:01:44.7]}
36. Kg3 {[%clk 0:00:10.5]} 36... Qd6+ {[%clk 0:01:44.6]} 37. Kh3 {[%clk
0:00:11.2]} 37... h5 {[%clk 0:01:44.2]} 38. g3 {[%clk 0:00:11.8]} 38... g5
{[%clk 0:01:36.9]} 39. g4 {[%clk 0:00:07]} 39... hxg4+ {[%clk 0:01:38.3]} 40.
Bxg4 {[%clk 0:00:08.3]} 40... Qxd5 {[%clk 0:01:36.8]} 41. Qxb6 {[%clk
0:00:07.6]} 41... Qd3+ {[%clk 0:01:37.6]} 42. Kg2 {[%clk 0:00:07]} 42... Nxg4
{[%clk 0:01:38.5]} 43. Qc6 {[%clk 0:00:07.7]} 43... Ne3+ {[%clk 0:01:35.5]} 44.
Kf3 {[%clk 0:00:06.8]} 44... Nd5+ {[%clk 0:01:32.6]} 45. Kg2 {[%clk 0:00:06.6]}
45... Nf4+ {[%clk 0:01:32.9]} 46. Kf2 {[%clk 0:00:05.4]} 46... f5 {[%clk
0:01:21.9]} 47. Kg1 {[%clk 0:00:02.2]} 47... Qd1+ {[%clk 0:01:22.4]} 48. Kf2
{[%clk 0:00:03.3]} 48... Qe2+ {[%clk 0:01:23.9]} 49. Kg1 {[%clk 0:00:04.2]}
49... Qe1# {[%clk 0:01:24.7]} 0-1

[Event "*** Titled Tuesday 3|2 Blitz"]
[Site "Chess.com"]
[Date "2015.01.27"]
[Round "4"]
[White "kleber2007"]
[Black "andryusha"]
[Result "1-0"]
[WhiteElo "2142"]
[BlackElo "2035"]
[TimeControl "180+2"]
[EndTime "11:58:14 PST"]
[Termination "kleber2007 won on time"]

1. d4 {[%clk 0:02:45.7]} 1... Nf6 {[%clk 0:00:34.1]} 2. Nf3 {[%clk 0:02:31.2]}
2... e6 {[%clk 0:00:35.3]} 3. Bg5 {[%clk 0:02:30.5]} 3... c5 {[%clk 0:00:35.8]}
4. e3 {[%clk 0:02:30.8]} 4... Nc6 {[%clk 0:00:36.5]} 5. Nbd2 {[%clk 0:02:27]}
5... b6 {[%clk 0:00:35.3]} 6. c3 {[%clk 0:02:27.3]} 6... Bb7 {[%clk 0:00:36.5]}
7. Bd3 {[%clk 0:02:27.9]} 7... Be7 {[%clk 0:00:36.7]} 8. O-O {[%clk 0:02:26.5]}
8... O-O {[%clk 0:00:37.4]} 9. Qe2 {[%clk 0:02:20.7]} 9... d6 {[%clk 0:00:38.1]}
10. a3 {[%clk 0:02:19.5]} 10... h6 {[%clk 0:00:38.5]} 11. Bh4 {[%clk 0:02:20.1]}
11... Re8 {[%clk 0:00:39]} 12. e4 {[%clk 0:02:21]} 12... e5 {[%clk 0:00:39.2]}
13. dxe5 {[%clk 0:02:17.8]} 13... Nxe5 {[%clk 0:00:39.4]} 14. Nxe5 {[%clk
0:02:18]} 14... dxe5 {[%clk 0:00:40.5]} 15. Rfd1 {[%clk 0:02:13.2]} 15... Qc7
{[%clk 0:00:37.9]} 16. Ba6 {[%clk 0:01:48.6]} 16... Bxa6 {[%clk 0:00:26.5]} 17.
Qxa6 {[%clk 0:01:48.4]} 17... Nh7 {[%clk 0:00:22]} 18. Bg3 {[%clk 0:01:45.9]}
18... Ng5 {[%clk 0:00:20.7]} 19. f3 {[%clk 0:01:45.5]} 19... Ne6 {[%clk
0:00:21.3]} 20. Nc4 {[%clk 0:01:44.9]} 20... Bf6 {[%clk 0:00:20.9]} 21. a4
{[%clk 0:01:43.3]} 21... Red8 {[%clk 0:00:21.4]} 22. a5 {[%clk 0:01:36.6]} 22...
Rxd1+ {[%clk 0:00:21.7]} 23. Rxd1 {[%clk 0:01:36.6]} 23... bxa5 {[%clk
0:00:20.9]} 24. Qxa5 {[%clk 0:01:32.5]} 24... Qxa5 {[%clk 0:00:21.4]} 25. Nxa5
{[%clk 0:01:33.4]} 25... Rb8 {[%clk 0:00:17.5]} 26. Nc4 {[%clk 0:01:33]} 26...
Rb7 {[%clk 0:00:16.2]} 27. Kf1 {[%clk 0:01:33.5]} 27... Kf8 {[%clk 0:00:16.3]}
28. Ke2 {[%clk 0:01:34.1]} 28... Nf4+ {[%clk 0:00:14.6]} 29. Bxf4 {[%clk
0:01:34.1]} 29... exf4 {[%clk 0:00:16]} 30. Rd6 {[%clk 0:01:25.8]} 30... Be7
{[%clk 0:00:15.9]} 31. Rc6 {[%clk 0:01:26.9]} 31... Ke8 {[%clk 0:00:12.9]} 32.
e5 {[%clk 0:01:25.9]} 32... Kd7 {[%clk 0:00:13.8]} 33. Ra6 {[%clk 0:01:27.3]}
33... Bd8 {[%clk 0:00:09.7]} 34. Kd3 {[%clk 0:01:27]} 34... Bb6 {[%clk
0:00:10.4]} 35. Ke4 {[%clk 0:01:27.1]} 35... g5 {[%clk 0:00:10.2]} 36. Kf5
{[%clk 0:01:26.6]} 36... Kc6 {[%clk 0:00:11.5]} 37. Na5+ {[%clk 0:01:17.7]}
37... Kb5 {[%clk 0:00:11.9]} 38. Nxb7 {[%clk 0:01:19.2]} 38... Kxa6 {[%clk
0:00:13.2]} 39. Nd6 {[%clk 0:01:20.9]} 39... Ka5 {[%clk 0:00:11.4]} 40. b3
{[%clk 0:01:17.3]} 40... Bc7 {[%clk 0:00:06.4]} 41. Nxf7 {[%clk 0:01:13]} 41...
c4 {[%clk 0:00:07.8]} 42. b4+ {[%clk 0:00:47.2]} 42... Ka4 {[%clk 0:00:06.8]}
43. e6 {[%clk 0:00:48.6]} 1-0

[Event "*** Titled Tuesday 3|2 Blitz"]
[Site "Chess.com"]
[Date "2015.01.27"]
[Round "4"]
[White "Tilicheev_Viacheslav"]
[Black "exoticprincess"]
[Result "0-1"]
[WhiteElo "2501"]
[BlackElo "2670"]
[TimeControl "180+2"]
[EndTime "11:58:42 PST"]
[Termination "exoticprincess won by resignation"]

1. e4 {[%clk 0:02:56.5]} 1... c6 {[%clk 0:02:58.5]} 2. Nc3 {[%clk 0:02:57.1]}
2... d5 {[%clk 0:02:56.4]} 3. Qf3 {[%clk 0:02:56.4]} 3... d4 {[%clk 0:02:53.5]}
4. Bc4 {[%clk 0:02:56.9]} 4... e6 {[%clk 0:02:50.5]} 5. Nce2 {[%clk 0:02:57.6]}
5... Nd7 {[%clk 0:02:46.8]} 6. Qg3 {[%clk 0:02:56.4]} 6... Nc5 {[%clk
0:02:43.7]} 7. d3 {[%clk 0:02:45.1]} 7... b5 {[%clk 0:02:42.9]} 8. Bb3 {[%clk
0:02:46.1]} 8... a5 {[%clk 0:02:44]} 9. a3 {[%clk 0:02:46.7]} 9... Nxb3 {[%clk
0:02:45.9]} 10. cxb3 {[%clk 0:02:48.6]} 10... f6 {[%clk 0:02:45.2]} 11. f4
{[%clk 0:02:48.1]} 11... c5 {[%clk 0:02:43.1]} 12. Nf3 {[%clk 0:02:48.1]} 12...
Ne7 {[%clk 0:02:42.4]} 13. Bd2 {[%clk 0:02:47.1]} 13... Bb7 {[%clk 0:02:39]} 14.
Rc1 {[%clk 0:02:47.4]} 14... Nc6 {[%clk 0:02:40.3]} 15. O-O {[%clk 0:02:47.4]}
15... Qd7 {[%clk 0:02:38.7]} 16. Qh3 {[%clk 0:02:00.9]} 16... a4 {[%clk
0:02:37.2]} 17. bxa4 {[%clk 0:01:48.7]} 17... Rxa4 {[%clk 0:02:35.1]} 18. Rxc5
{[%clk 0:01:48.5]} 18... Bxc5 {[%clk 0:02:37]} 19. Qh5+ {[%clk 0:01:49.3]} 19...
g6 {[%clk 0:02:32.7]} 20. Qxc5 {[%clk 0:01:51.2]} 20... Kf7 {[%clk 0:02:29.2]}
21. f5 {[%clk 0:00:40.2]} 21... gxf5 {[%clk 0:02:22.5]} 22. exf5 {[%clk
0:00:38.7]} 22... e5 {[%clk 0:02:24.4]} 23. Ng3 {[%clk 0:00:36.7]} 23... Ne7
{[%clk 0:02:17.4]} 24. b3 {[%clk 0:00:09.4]} 24... Ra6 {[%clk 0:02:13.4]} 25.
Qc1 {[%clk 0:00:07.3]} 25... h5 {[%clk 0:02:08.2]} 26. Qd1 {[%clk 0:00:04.2]}
26... h4 {[%clk 0:02:06]} 27. Ne4 {[%clk 0:00:05.5]} 27... Bxe4 {[%clk
0:02:01.7]} 28. dxe4 {[%clk 0:00:07.4]} 28... Rxa3 {[%clk 0:01:59.6]} 29. Bb4
{[%clk 0:00:08.5]} 29... Ra2 {[%clk 0:02:01.3]} 30. Kh1 {[%clk 0:00:07.3]} 30...
Nc6 {[%clk 0:01:59.2]} 31. Bc5 {[%clk 0:00:06.9]} 31... b4 {[%clk 0:01:54.5]}
32. Qd3 {[%clk 0:00:04.9]} 32... Kg7 {[%clk 0:01:51.3]} 33. Nxh4 {[%clk
0:00:04.5]} 33... Rh5 {[%clk 0:01:45.5]} 34. Ng6 {[%clk 0:00:05.5]} 34... Rg5
{[%clk 0:01:39.9]} 35. Qh3 {[%clk 0:00:06.4]} 35... Rxg6 {[%clk 0:01:37.6]} 36.
fxg6 {[%clk 0:00:05.1]} 36... Qxh3 {[%clk 0:01:39.5]} 37. gxh3 {[%clk
0:00:06.5]} 37... Rb2 {[%clk 0:01:38.1]} 38. Rg1 {[%clk 0:00:06.1]} 38... Rxb3
{[%clk 0:01:34.5]} 39. h4 {[%clk 0:00:07.6]} 39... Rh3 {[%clk 0:01:35.5]} 40.
Rg4 {[%clk 0:00:08]} 40... b3 {[%clk 0:01:36]} 41. Ba3 {[%clk 0:00:09.2]} 41...
d3 {[%clk 0:01:35.5]} 42. Kg2 {[%clk 0:00:10.1]} 42... d2 {[%clk 0:01:36.1]} 43.
Kxh3 {[%clk 0:00:07.4]} 43... d1=Q {[%clk 0:01:35.9]} 44. h5 {[%clk 0:00:09.3]}
44... Qf3+ {[%clk 0:01:33]} 45. Kh4 {[%clk 0:00:10.3]} 45... Qf2+ {[%clk
0:01:33.5]} 46. Kh3 {[%clk 0:00:11.5]} 46... Qe3+ {[%clk 0:01:33.4]} 47. Kh4
{[%clk 0:00:12.5]} 47... Nd4 {[%clk 0:01:30]} 48. Rg3 {[%clk 0:00:04.2]} 48...
Qf4+ {[%clk 0:01:27.6]} 49. Kh3 {[%clk 0:00:04.5]} 49... Nf3 {[%clk 0:01:28.8]}
50. Kg2 {[%clk 0:00:04.6]} 50... Ng5 {[%clk 0:01:25.8]} 51. h4 {[%clk
0:00:02.7]} 51... Qxe4+ {[%clk 0:01:26.1]} 0-1

[Event "*** Titled Tuesday 3|2 Blitz"]
[Site "Chess.com"]
[Date "2015.01.27"]
[Round "4"]
[White "AnthonyWirig"]
[Black "FairChess_on_YouTube"]
[Result "1/2-1/2"]
[WhiteElo "2563"]
[BlackElo "2715"]
[TimeControl "180+2"]
[EndTime "11:59:01 PST"]
[Termination "Game drawn by agreement"]

1. d4 {[%clk 0:03:00]} 1... d5 {[%clk 0:02:57.3]} 2. Nf3 {[%clk 0:03:00.4]} 2...
Nf6 {[%clk 0:02:57.8]} 3. c4 {[%clk 0:03:01.6]} 3... e6 {[%clk 0:02:58.3]} 4.
Nc3 {[%clk 0:03:02]} 4... Be7 {[%clk 0:02:59.1]} 5. Bf4 {[%clk 0:02:56.4]} 5...
O-O {[%clk 0:02:59.9]} 6. e3 {[%clk 0:02:57.3]} 6... Nbd7 {[%clk 0:03:00.1]} 7.
Rc1 {[%clk 0:02:45.8]} 7... c5 {[%clk 0:02:57.4]} 8. dxc5 {[%clk 0:02:40.8]}
8... Nxc5 {[%clk 0:02:57.3]} 9. Be2 {[%clk 0:02:22.4]} 9... dxc4 {[%clk
0:02:54.4]} 10. Bxc4 {[%clk 0:02:18.3]} 10... a6 {[%clk 0:02:55.1]} 11. Ne5
{[%clk 0:02:02.6]} 11... Qxd1+ {[%clk 0:02:39.1]} 12. Rxd1 {[%clk 0:02:02.9]}
12... Nfd7 {[%clk 0:02:39.5]} 13. Be2 {[%clk 0:01:35.8]} 13... Bf6 {[%clk
0:02:25.7]} 14. Nxd7 {[%clk 0:01:31.9]} 14... Nxd7 {[%clk 0:02:16]} 15. Bf3
{[%clk 0:01:20.2]} 15... Ne5 {[%clk 0:02:14.9]} 16. Be2 {[%clk 0:00:58.9]} 16...
b5 {[%clk 0:02:04.6]} 17. Ne4 {[%clk 0:00:59.4]} 17... Bb7 {[%clk 0:02:05.5]}
18. Nxf6+ {[%clk 0:00:58.1]} 18... gxf6 {[%clk 0:02:07.2]} 19. O-O {[%clk
0:00:48]} 19... Rfc8 {[%clk 0:02:08.1]} 20. Rc1 {[%clk 0:00:47.5]} 20... Be4
{[%clk 0:02:07.3]} 21. Bxe5 {[%clk 0:00:37.9]} 21... fxe5 {[%clk 0:02:08.1]} 22.
f3 {[%clk 0:00:37]} 22... Bd5 {[%clk 0:02:08.5]} 23. a3 {[%clk 0:00:37.3]} 23...
Kf8 {[%clk 0:02:02.9]} 24. Kf2 {[%clk 0:00:38.3]} 24... Ke7 {[%clk 0:02:03.8]}
25. e4 {[%clk 0:00:36.9]} 25... Bb3 {[%clk 0:02:04.4]} 26. Ke3 {[%clk
0:00:36.5]} 26... f5 {[%clk 0:02:01.5]} 27. g3 {[%clk 0:00:35.9]} 27... Kf6
{[%clk 0:02:00.9]} 28. Bd3 {[%clk 0:00:37]} 28... h6 {[%clk 0:02:00.9]} 29. f4
{[%clk 0:00:37.1]} 29... exf4+ {[%clk 0:01:59.8]} 30. gxf4 {[%clk 0:00:36.9]}
30... fxe4 {[%clk 0:01:58]} 31. Bxe4 {[%clk 0:00:38.8]} 31... Rab8 {[%clk
0:01:58.9]} 32. Rg1 {[%clk 0:00:37.6]} 32... Rxc1 {[%clk 0:01:57.3]} 33. Rxc1
{[%clk 0:00:39.5]} 33... b4 {[%clk 0:01:58.9]} 34. Rc6 {[%clk 0:00:32.5]} 34...
bxa3 {[%clk 0:01:59.4]} 35. bxa3 {[%clk 0:00:33.5]} 35... a5 {[%clk 0:02:00.6]}
36. f5 {[%clk 0:00:31.6]} 36... Ke7 {[%clk 0:01:51.1]} 37. Ra6 {[%clk
0:00:23.4]} 37... exf5 {[%clk 0:01:47.9]} 38. Bxf5 {[%clk 0:00:23.3]} 38... Rb5
{[%clk 0:01:48.2]} 39. Kf4 {[%clk 0:00:22.1]} 39... h5 {[%clk 0:01:46.1]} 40. h4
{[%clk 0:00:22.5]} 40... Bf7 {[%clk 0:01:46.4]} 41. Be4 {[%clk 0:00:17.6]} 41...
Rc5 {[%clk 0:01:45.1]} 42. Ra7+ {[%clk 0:00:15.3]} 42... Kf6 {[%clk 0:01:45.9]}
43. Ra6+ {[%clk 0:00:16.6]} 43... Be6 {[%clk 0:01:45.1]} 44. Bf3 {[%clk
0:00:14.6]} 44... Rc4+ {[%clk 0:01:42.5]} 45. Be4 {[%clk 0:00:16]} 45... Ra4
{[%clk 0:01:40.5]} 46. Rb6 {[%clk 0:00:12]} 46... Rd4 {[%clk 0:01:26.8]} 47. Ra6
{[%clk 0:00:12.7]} 47... Ra4 {[%clk 0:01:26.7]} 48. Rb6 {[%clk 0:00:13.7]} 48...
Ke7 {[%clk 0:01:17.8]} 49. Ke5 {[%clk 0:00:13.9]} 49... Bg4 {[%clk 0:01:19.4]}
50. Rb7+ {[%clk 0:00:13.4]} 50... Kd8 {[%clk 0:01:17.2]} 51. Bc6 {[%clk
0:00:13.8]} 51... Rxa3 {[%clk 0:01:16.1]} 52. Ra7 {[%clk 0:00:14.7]} 52... a4
{[%clk 0:00:57.1]} 53. Rxa4 {[%clk 0:00:12.7]} 53... Rxa4 {[%clk 0:00:57.3]} 54.
Bxa4 {[%clk 0:00:14.6]} 54... Ke7 {[%clk 0:00:58.8]} 55. Bb3 {[%clk 0:00:14.6]}
1/2-1/2

[Event "*** Titled Tuesday 3|2 Blitz"]
[Site "Chess.com"]
[Date "2015.01.27"]
[Round "4"]
[White "SidArun"]
[Black "FlySooHigh"]
[Result "1/2-1/2"]
[WhiteElo "1841"]
[BlackElo "2380"]
[TimeControl "180+2"]
[EndTime "11:59:01 PST"]
[Termination "Game drawn by agreement"]

1. e4 {[%clk 0:03:00]} 1... d5 {[%clk 0:02:58.4]} 2. exd5 {[%clk 0:03:00.5]}
2... Nf6 {[%clk 0:02:59.4]} 3. Nf3 {[%clk 0:03:01.8]} 3... Nxd5 {[%clk
0:02:59.8]} 4. d4 {[%clk 0:03:03]} 4... g6 {[%clk 0:03:00.5]} 5. Bc4 {[%clk
0:03:01.5]} 5... Bg7 {[%clk 0:03:01.1]} 6. O-O {[%clk 0:03:01.9]} 6... O-O
{[%clk 0:03:01.6]} 7. c3 {[%clk 0:03:01.4]} 7... Nb6 {[%clk 0:02:58.2]} 8. Bb3
{[%clk 0:03:01.8]} 8... N8d7 {[%clk 0:02:55.6]} 9. Nbd2 {[%clk 0:03:02]} 9... c5
{[%clk 0:02:52.7]} 10. Nc4 {[%clk 0:02:59.8]} 10... cxd4 {[%clk 0:02:45.3]} 11.
Nxd4 {[%clk 0:02:58.2]} 11... Nc5 {[%clk 0:02:42.8]} 12. Nxb6 {[%clk 0:02:56.5]}
12... Qxb6 {[%clk 0:02:44.7]} 13. Bc2 {[%clk 0:02:54]} 13... e5 {[%clk
0:02:37.5]} 14. Nb3 {[%clk 0:02:45.9]} 14... Na4 {[%clk 0:02:16.6]} 15. Be3
{[%clk 0:02:40.5]} 15... Qc7 {[%clk 0:02:12.7]} 16. Qc1 {[%clk 0:02:37.6]} 16...
Be6 {[%clk 0:02:02.4]} 17. Nd2 {[%clk 0:02:23.3]} 17... Nb6 {[%clk 0:02:00.3]}
18. Bb3 {[%clk 0:02:14.8]} 18... Nd5 {[%clk 0:01:51.6]} 19. Ne4 {[%clk
0:02:07.4]} 19... Nxe3 {[%clk 0:01:27.4]} 20. Qxe3 {[%clk 0:02:05.8]} 20... Rfe8
{[%clk 0:01:21.4]} 21. Nc5 {[%clk 0:01:56.3]} 21... Bf5 {[%clk 0:01:09.9]} 22.
Rad1 {[%clk 0:01:45.5]} 22... Rad8 {[%clk 0:01:02.6]} 23. Ne4 {[%clk 0:01:24.3]}
23... h6 {[%clk 0:00:35.2]} 24. Ng3 {[%clk 0:01:14.1]} 24... b6 {[%clk
0:00:25.9]} 25. Nxf5 {[%clk 0:00:56.8]} 25... gxf5 {[%clk 0:00:27.8]} 26. Bd5
{[%clk 0:00:57.7]} 26... e4 {[%clk 0:00:26.8]} 27. Qh3 {[%clk 0:00:55.9]} 27...
Qe5 {[%clk 0:00:26.4]} 28. c4 {[%clk 0:00:54.9]} 28... Kf8 {[%clk 0:00:20.7]}
29. Qh5 {[%clk 0:00:55.3]} 29... Re7 {[%clk 0:00:12.4]} 30. b3 {[%clk
0:00:43.4]} 30... f4 {[%clk 0:00:13.1]} 31. Qxe5 {[%clk 0:00:43.7]} 31... Rxe5
{[%clk 0:00:15]} 32. Rfe1 {[%clk 0:00:43.8]} 32... f5 {[%clk 0:00:15.5]} 33. Re2
{[%clk 0:00:44.4]} 33... Bf6 {[%clk 0:00:15]} 34. f3 {[%clk 0:00:43.2]} 34...
Be7 {[%clk 0:00:09.2]} 35. fxe4 {[%clk 0:00:42.7]} 35... fxe4 {[%clk 0:00:09.5]}
36. Rf1 {[%clk 0:00:43.5]} 36... Bc5+ {[%clk 0:00:09.9]} 37. Kh1 {[%clk
0:00:44.7]} 37... Kg7 {[%clk 0:00:05.7]} 38. Rxf4 {[%clk 0:00:45]} 38... e3
{[%clk 0:00:07.1]} 39. g3 {[%clk 0:00:43.2]} 39... Kg6 {[%clk 0:00:06.7]} 40.
Kg2 {[%clk 0:00:44.1]} 40... Rd6 {[%clk 0:00:07]} 41. Kf3 {[%clk 0:00:43.2]}
41... a5 {[%clk 0:00:07.2]} 42. Be4+ {[%clk 0:00:43.6]} 42... Kg7 {[%clk
0:00:08]} 43. Bd5 {[%clk 0:00:44.9]} 43... Rf6 {[%clk 0:00:08.9]} 44. Rxf6
{[%clk 0:00:45.5]} 44... Kxf6 {[%clk 0:00:10.8]} 45. Be4 {[%clk 0:00:43.4]}
45... Ke6 {[%clk 0:00:11.4]} 46. Bd5+ {[%clk 0:00:44.2]} 46... Kf6 {[%clk
0:00:12]} 47. g4 {[%clk 0:00:45.5]} 47... Re7 {[%clk 0:00:11.9]} 48. h4 {[%clk
0:00:43.5]} 48... Ke5 {[%clk 0:00:12.8]} 49. g5 {[%clk 0:00:44]} 49... hxg5
{[%clk 0:00:12.3]} 50. hxg5 {[%clk 0:00:45]} 50... Kf5 {[%clk 0:00:13.5]} 51.
Rg2 {[%clk 0:00:44.6]} 51... e2 {[%clk 0:00:12.4]} 52. Rxe2 {[%clk 0:00:45]}
52... Rxe2 {[%clk 0:00:14]} 53. Kxe2 {[%clk 0:00:46.2]} 53... Kxg5 {[%clk
0:00:15.9]} 54. Kd3 {[%clk 0:00:47.4]} 1/2-1/2

[Event "*** Titled Tuesday 3|2 Blitz"]
[Site "Chess.com"]
[Date "2015.01.27"]
[Round "4"]
[White "EltajSafarli"]
[Black "GeorgMeier"]
[Result "1-0"]
[WhiteElo "2574"]
[BlackElo "2657"]
[TimeControl "180+2"]
[EndTime "11:59:41 PST"]
[Termination "EltajSafarli won on time"]

1. e4 {[%clk 0:03:00]} 1... e6 {[%clk 0:02:59.6]} 2. d4 {[%clk 0:03:00.3]} 2...
d5 {[%clk 0:03:01.2]} 3. Nd2 {[%clk 0:03:02.2]} 3... dxe4 {[%clk 0:03:02.7]} 4.
Nxe4 {[%clk 0:03:03.2]} 4... Nd7 {[%clk 0:03:04.6]} 5. Bd3 {[%clk 0:03:00.8]}
5... Ngf6 {[%clk 0:03:05.4]} 6. Qe2 {[%clk 0:03:02.4]} 6... c5 {[%clk
0:03:05.9]} 7. Nxf6+ {[%clk 0:03:00.1]} 7... Nxf6 {[%clk 0:03:07.8]} 8. dxc5
{[%clk 0:03:02]} 8... Bxc5 {[%clk 0:03:09.1]} 9. Bd2 {[%clk 0:03:02.5]} 9... O-O
{[%clk 0:03:08.7]} 10. O-O-O {[%clk 0:03:02.9]} 10... Qb6 {[%clk 0:03:07.9]} 11.
Nf3 {[%clk 0:02:57.2]} 11... e5 {[%clk 0:03:09.1]} 12. Nxe5 {[%clk 0:02:54.2]}
12... Re8 {[%clk 0:03:08.8]} 13. Bc3 {[%clk 0:02:48.8]} 13... Be6 {[%clk
0:03:08.4]} 14. Qf3 {[%clk 0:02:46]} 14... Rac8 {[%clk 0:02:40.1]} 15. Nc4
{[%clk 0:02:42.8]} 15... Bxc4 {[%clk 0:02:30.1]} 16. Bxc4 {[%clk 0:02:44.7]}
16... Bxf2 {[%clk 0:02:25.9]} 17. Bb3 {[%clk 0:02:45.5]} 17... Qe3+ {[%clk
0:02:24.6]} 18. Qxe3 {[%clk 0:02:46.5]} 18... Bxe3+ {[%clk 0:02:26.5]} 19. Kb1
{[%clk 0:02:47.7]} 19... Re7 {[%clk 0:00:27.7]} 20. Rhe1 {[%clk 0:02:37.5]}
20... Bc5 {[%clk 0:00:28.3]} 21. Re5 {[%clk 0:02:30.2]} 21... Rxe5 {[%clk
0:00:25.6]} 22. Bxe5 {[%clk 0:02:32.1]} 22... Be7 {[%clk 0:00:27.1]} 23. c3
{[%clk 0:02:19.2]} 23... Rd8 {[%clk 0:00:28.2]} 24. Bd4 {[%clk 0:02:20.2]} 24...
b6 {[%clk 0:00:26.7]} 25. Re1 {[%clk 0:02:21.8]} 25... Kf8 {[%clk 0:00:27.7]}
26. Rf1 {[%clk 0:02:16.2]} 26... Rd7 {[%clk 0:00:28.5]} 27. a4 {[%clk 0:02:15]}
27... h6 {[%clk 0:00:29]} 28. h4 {[%clk 0:02:12.1]} 28... Bc5 {[%clk 0:00:27.7]}
29. Bxf6 {[%clk 0:02:10]} 29... gxf6 {[%clk 0:00:28.3]} 30. Rxf6 {[%clk
0:02:11.9]} 30... Kg7 {[%clk 0:00:29]} 31. Rf3 {[%clk 0:02:13.4]} 31... a5
{[%clk 0:00:27.6]} 32. Kc2 {[%clk 0:02:10.9]} 32... Kg6 {[%clk 0:00:26]} 33. g4
{[%clk 0:02:03.8]} 33... Kg7 {[%clk 0:00:23.1]} 34. Rf5 {[%clk 0:02:01.2]} 34...
Be3 {[%clk 0:00:20.4]} 35. Bd5 {[%clk 0:01:59.6]} 35... f6 {[%clk 0:00:20.5]}
36. b4 {[%clk 0:01:56.7]} 36... Re7 {[%clk 0:00:19.2]} 37. Kd3 {[%clk
0:01:54.1]} 37... axb4 {[%clk 0:00:19.3]} 38. cxb4 {[%clk 0:01:49.8]} 38... Bg1
{[%clk 0:00:20.3]} 39. Kc4 {[%clk 0:01:50.7]} 39... Re2 {[%clk 0:00:19.7]} 40.
Kb5 {[%clk 0:01:44.2]} 40... Rd2 {[%clk 0:00:20.1]} 41. a5 {[%clk 0:01:34.5]}
41... bxa5 {[%clk 0:00:19.1]} 42. bxa5 {[%clk 0:01:36.4]} 42... Rd4 {[%clk
0:00:19.8]} 43. Be6 {[%clk 0:01:32]} 43... Rxg4 {[%clk 0:00:11.6]} 44. Rf3
{[%clk 0:01:25.8]} 44... Rg2 {[%clk 0:00:08]} 45. a6 {[%clk 0:01:26.7]} 45...
Rb2+ {[%clk 0:00:08.7]} 46. Ka4 {[%clk 0:01:24.5]} 46... Bd4 {[%clk 0:00:09.9]}
47. h5 {[%clk 0:01:13.2]} 47... Kf8 {[%clk 0:00:09.9]} 48. Rxf6+ {[%clk
0:01:00.3]} 48... Ke7 {[%clk 0:00:07.7]} 49. Rf4 {[%clk 0:01:01.2]} 49... Bc5
{[%clk 0:00:07.2]} 50. Re4 {[%clk 0:00:59]} 50... Kd6 {[%clk 0:00:06.7]} 51. Bb3
{[%clk 0:01:00.6]} 51... Kc7 {[%clk 0:00:04.6]} 52. Rc4 {[%clk 0:00:57.6]} 1-0